[Event "Titled Tuesday Blitz November 01 Early 2022"]
[White "Bryakin, Mikhail"]
[Black "Gurevich, Dmitry"]
[WhiteFideId "4165314"]
[BlackFideId "2000407"]
[WhiteElo "2788"]
[BlackElo "2592"]
[Result "1-0"]
[Round "06"]
[TimeControl "180+1"]
[Date "2022.11.02"]
[WhiteClock "0:00:05"]
[BlackClock "0:00:03"]

1. Nf3 {[%clk 0:03:00]}  Nf6 {[%clk 0:02:59]} 2. b3 {[%clk 0:02:59]}  g6 {[%clk 0:02:56]} 3. Bb2 {[%clk 0:02:59]}  Bg7 {[%clk 0:02:57]} 4. g3 {[%clk 0:03:00]}  O-O {[%clk 0:02:57]} 5. Bg2 {[%clk 0:03:00]}  c5 {[%clk 0:02:55]} 6. c4 {[%clk 0:03:00]}  Nc6 {[%clk 0:02:53]} 7. O-O {[%clk 0:03:01]}  b6 {[%clk 0:02:50]} 8. Nc3 {[%clk 0:03:01]}  Bb7 {[%clk 0:02:50]} 9. d4 {[%clk 0:03:02]}  Nxd4 {[%clk 0:02:48]} 10. Nxd4 {[%clk 0:03:02]}  Bxg2 {[%clk 0:02:47]} 11. Kxg2 {[%clk 0:03:03]}  cxd4 {[%clk 0:02:47]} 12. Qxd4 {[%clk 0:03:04]}  Qc7 {[%clk 0:02:42]} 13. e4 {[%clk 0:03:00]}  d6 {[%clk 0:02:40]} 14. Rab1 {[%clk 0:02:59]}  Rfe8 {[%clk 0:02:38]} 15. Nd5 {[%clk 0:02:53]}  Qb7 {[%clk 0:02:37]} 16. Qd3 {[%clk 0:02:45]}  Nxd5 {[%clk 0:02:30]} 17. exd5 {[%clk 0:02:45]}  Bxb2 {[%clk 0:02:30]} 18. Rxb2 {[%clk 0:02:46]}  e5 {[%clk 0:02:29]} 19. Re2 {[%clk 0:02:44]}  Re7 {[%clk 0:02:25]} 20. Rfe1 {[%clk 0:02:44]}  Rae8 {[%clk 0:02:23]} 21. a4 {[%clk 0:02:42]}  a5 {[%clk 0:02:20]} 22. f4 {[%clk 0:02:41]}  exf4 {[%clk 0:02:18]} 23. gxf4 {[%clk 0:02:42]}  Rxe2+ {[%clk 0:02:13]} 24. Rxe2 {[%clk 0:02:43]}  Rxe2+ {[%clk 0:02:12]} 25. Qxe2 {[%clk 0:02:44]}  Qd7 {[%clk 0:02:11]} 26. Qe3 {[%clk 0:02:44]}  Qg4+ {[%clk 0:02:09]} 27. Kf2 {[%clk 0:02:44]}  Qh4+ {[%clk 0:02:08]} 28. Kg2 {[%clk 0:02:44]}  Qg4+ {[%clk 0:02:07]} 29. Kf1 {[%clk 0:02:42]}  Qd1+ {[%clk 0:02:05]} 30. Kf2 {[%clk 0:02:43]}  Qc2+ {[%clk 0:02:03]} 31. Kg3 {[%clk 0:02:43]}  h5 {[%clk 0:01:54]} 32. Qxb6 {[%clk 0:02:33]}  Qd3+ {[%clk 0:01:52]} 33. Kf2 {[%clk 0:02:18]}  Qc2+ {[%clk 0:01:47]} 34. Kf3 {[%clk 0:02:14]}  Qd1+ {[%clk 0:01:45]} 35. Kf2 {[%clk 0:02:09]}  Qc2+ {[%clk 0:01:44]} 36. Kg3 {[%clk 0:02:09]}  Qd3+ {[%clk 0:01:42]} 37. Kh4 {[%clk 0:01:52]}  Qf3 {[%clk 0:01:41]} 38. Kg5 {[%clk 0:01:42]}  Qg4+ {[%clk 0:01:36]} 39. Kf6 {[%clk 0:01:43]}  Qxf4+ {[%clk 0:01:35]} 40. Ke7 {[%clk 0:01:43]}  Qxh2 {[%clk 0:01:28]} 41. Qxd6 {[%clk 0:01:43]}  Qe2+ {[%clk 0:01:24]} 42. Kd8 {[%clk 0:01:41]}  h4 {[%clk 0:01:23]} 43. c5 {[%clk 0:01:41]}  h3 {[%clk 0:01:23]} 44. c6 {[%clk 0:01:40]}  h2 {[%clk 0:01:22]} 45. c7 {[%clk 0:01:40]}  h1=Q {[%clk 0:01:17]} 46. c8=Q {[%clk 0:01:40]}  Kg7 {[%clk 0:01:12]} 47. Qc3+ {[%clk 0:01:37]}  Kh7 {[%clk 0:01:11]} 48. Qcf6 {[%clk 0:01:14]}  Qhf3 {[%clk 0:00:55]} 49. Qxf3 {[%clk 0:01:05]}  Qxf3 {[%clk 0:00:55]} 50. Qh2+ {[%clk 0:00:59]}  Kg7 {[%clk 0:00:50]} 51. Qb2+ {[%clk 0:00:59]}  f6 {[%clk 0:00:47]} 52. d6 {[%clk 0:00:50]}  Qa8+ {[%clk 0:00:39]} 53. Kc7 {[%clk 0:00:50]}  Qa7+ {[%clk 0:00:39]} 54. Kc6 {[%clk 0:00:51]}  Qa6+ {[%clk 0:00:38]} 55. Kc5 {[%clk 0:00:51]}  Qa7+ {[%clk 0:00:38]} 56. Kd5 {[%clk 0:00:47]}  Qb7+ {[%clk 0:00:38]} 57. Kc5 {[%clk 0:00:48]}  Qa7+ {[%clk 0:00:38]} 58. Kb5 {[%clk 0:00:49]}  Qb8+ {[%clk 0:00:37]} 59. Kxa5 {[%clk 0:00:41]}  Qxd6 {[%clk 0:00:37]} 60. Qc3 {[%clk 0:00:40]}  g5 {[%clk 0:00:34]} 61. b4 {[%clk 0:00:40]}  g4 {[%clk 0:00:32]} 62. b5 {[%clk 0:00:41]}  g3 {[%clk 0:00:32]} 63. Qf3 {[%clk 0:00:40]}  Qc7+ {[%clk 0:00:24]} 64. b6 {[%clk 0:00:38]}  Qc5+ {[%clk 0:00:24]} 65. Ka6 {[%clk 0:00:38]}  Qf2 {[%clk 0:00:23]} 66. Qg4+ {[%clk 0:00:38]}  Kf7 {[%clk 0:00:23]} 67. b7 {[%clk 0:00:36]}  g2 {[%clk 0:00:11]} 68. b8=Q {[%clk 0:00:27]}  Qf1+ {[%clk 0:00:11]} 69. Ka5 {[%clk 0:00:24]}  Qe1+ {[%clk 0:00:10]} 70. Qbb4 {[%clk 0:00:24]}  g1=Q {[%clk 0:00:09]} 71. Qd7+ {[%clk 0:00:12]}  Kg6 {[%clk 0:00:09]} 72. Qd3+ {[%clk 0:00:11]}  Kf7 {[%clk 0:00:09]} 73. Qh7+ {[%clk 0:00:11]}  Ke6 {[%clk 0:00:08]} 74. Qh3+ {[%clk 0:00:12]}  Kf7 {[%clk 0:00:06]} 75. Qh5+ {[%clk 0:00:11]}  Kg7 {[%clk 0:00:05]} 76. Qxe1 {[%clk 0:00:03]}  Qxe1+ {[%clk 0:00:05]} 77. Kb5 {[%clk 0:00:03]}  Qb1+ {[%clk 0:00:04]} 78. Ka6 {[%clk 0:00:04]}  Qd3+ {[%clk 0:00:03]} 79. Qb5 {[%clk 0:00:05]} 1-0


[Site "https://www.chess.com"]

[Event "Titled Tuesday Blitz November 01 Early 2022"]
[White "Caruana, Fabiano"]
[Black "Molina, Roberto Junio Brito"]
[WhiteFideId "2020009"]
[BlackFideId "2109450"]
[WhiteElo "2847"]
[BlackElo "2388"]
[Result "1-0"]
[Round "06"]
[TimeControl "180+1"]
[Date "2022.11.01"]
[WhiteClock "0:00:29"]
[BlackClock "0:00:03"]

1. c4 {[%clk 0:03:00]}  c6 {[%clk 0:02:59]} 2. d4 {[%clk 0:03:00]}  d5 {[%clk 0:02:59]} 3. e3 {[%clk 0:03:00]}  Bf5 {[%clk 0:02:57]} 4. Nf3 {[%clk 0:02:59]}  e6 {[%clk 0:02:56]} 5. Nc3 {[%clk 0:02:59]}  Nd7 {[%clk 0:02:55]} 6. Bd3 {[%clk 0:02:59]}  Bxd3 {[%clk 0:02:55]} 7. Qxd3 {[%clk 0:03:00]}  Ngf6 {[%clk 0:02:55]} 8. O-O {[%clk 0:03:00]}  Be7 {[%clk 0:02:55]} 9. b3 {[%clk 0:02:59]}  O-O {[%clk 0:02:55]} 10. Bb2 {[%clk 0:02:58]}  a5 {[%clk 0:02:54]} 11. h3 {[%clk 0:02:54]}  Re8 {[%clk 0:02:53]} 12. Rfd1 {[%clk 0:02:53]}  Qb6 {[%clk 0:02:52]} 13. Rab1 {[%clk 0:02:53]}  Qa6 {[%clk 0:02:49]} 14. Ba1 {[%clk 0:02:47]}  Bb4 {[%clk 0:02:36]} 15. Ne2 {[%clk 0:02:35]}  Bd6 {[%clk 0:02:29]} 16. Qc2 {[%clk 0:02:33]}  Ne4 {[%clk 0:02:22]} 17. Nc3 {[%clk 0:02:30]}  Nxc3 {[%clk 0:02:21]} 18. Bxc3 {[%clk 0:02:30]}  a4 {[%clk 0:02:16]} 19. c5 {[%clk 0:02:26]}  axb3 {[%clk 0:02:14]} 20. Qxb3 {[%clk 0:02:23]}  Bf8 {[%clk 0:02:00]} 21. Qxb7 {[%clk 0:02:22]}  Ra7 {[%clk 0:01:43]} 22. Qxa6 {[%clk 0:02:21]}  Rxa6 {[%clk 0:01:44]} 23. Rb7 {[%clk 0:02:20]}  Rd8 {[%clk 0:01:39]} 24. Ra1 {[%clk 0:02:19]}  Be7 {[%clk 0:01:37]} 25. a4 {[%clk 0:02:19]}  Bf6 {[%clk 0:01:36]} 26. Ra3 {[%clk 0:02:12]}  Kf8 {[%clk 0:01:32]} 27. a5 {[%clk 0:02:10]}  Ke8 {[%clk 0:01:32]} 28. Ne1 {[%clk 0:02:09]}  Rda8 {[%clk 0:01:30]} 29. Nd3 {[%clk 0:02:08]}  Kd8 {[%clk 0:01:21]} 30. Nb4 {[%clk 0:02:01]}  Kc8 {[%clk 0:01:21]} 31. Nxa6 {[%clk 0:01:59]}  Kxb7 {[%clk 0:01:21]} 32. Nb4 {[%clk 0:01:59]}  Nb8 {[%clk 0:01:17]} 33. f3 {[%clk 0:01:57]}  Bd8 {[%clk 0:01:15]} 34. Nd3 {[%clk 0:01:57]}  Bc7 {[%clk 0:01:14]} 35. Kf2 {[%clk 0:01:52]}  Na6 {[%clk 0:01:08]} 36. e4 {[%clk 0:01:46]}  Kc8 {[%clk 0:01:04]} 37. Rb3 {[%clk 0:01:46]}  Rb8 {[%clk 0:01:04]} 38. Rxb8+ {[%clk 0:01:46]}  Nxb8 {[%clk 0:01:00]} 39. g4 {[%clk 0:01:41]}  Kb7 {[%clk 0:00:59]} 40. Bd2 {[%clk 0:01:30]}  Ka6 {[%clk 0:00:58]} 41. exd5 {[%clk 0:01:25]}  cxd5 {[%clk 0:00:50]} 42. f4 {[%clk 0:01:23]}  Kb5 {[%clk 0:00:37]} 43. Ke3 {[%clk 0:01:12]}  Nc6 {[%clk 0:00:33]} 44. f5 {[%clk 0:01:04]}  exf5 {[%clk 0:00:18]} 45. gxf5 {[%clk 0:01:05]}  g6 {[%clk 0:00:17]} 46. f6 {[%clk 0:00:55]}  Bd8 {[%clk 0:00:13]} 47. Ne5 {[%clk 0:00:55]}  Bxf6 {[%clk 0:00:12]} 48. Nxc6 {[%clk 0:00:38]}  Kxc6 {[%clk 0:00:13]} 49. a6 {[%clk 0:00:38]}  Bd8 {[%clk 0:00:13]} 50. Kf3 {[%clk 0:00:35]}  Bc7 {[%clk 0:00:07]} 51. Kg4 {[%clk 0:00:35]}  f6 {[%clk 0:00:05]} 52. Bh6 {[%clk 0:00:34]}  Bb8 {[%clk 0:00:04]} 53. Bg7 {[%clk 0:00:32]}  f5+ {[%clk 0:00:05]} 54. Kg5 {[%clk 0:00:32]}  Kb5 {[%clk 0:00:04]} 55. Be5 {[%clk 0:00:33]}  Ba7 {[%clk 0:00:03]} 56. Kh6 {[%clk 0:00:29]}  Kxa6 {[%clk 0:00:04]} 57. Kxh7 {[%clk 0:00:30]}  g5 {[%clk 0:00:04]} 58. Kg6 {[%clk 0:00:30]}  g4 {[%clk 0:00:05]} 59. h4 {[%clk 0:00:31]}  Kb5 {[%clk 0:00:03]} 60. Kxf5 {[%clk 0:00:29]} 1-0


[Site "https://www.chess.com"]

[Event "Titled Tuesday Blitz November 01 Early 2022"]
[White "Chigaev, Maksim"]
[Black "Agasarov, Benik"]
[WhiteFideId "4108116"]
[BlackFideId "13314823"]
[WhiteElo "2537"]
[BlackElo "2152"]
[Result "1-0"]
[Round "06"]
[TimeControl "180+1"]
[Date "2022.11.01"]
[WhiteClock "0:01:14"]
[BlackClock "0:00:04"]

1. Nf3 {[%clk 0:03:00]}  Nf6 {[%clk 0:02:58]} 2. c4 {[%clk 0:03:00]}  e6 {[%clk 0:02:58]} 3. g3 {[%clk 0:03:01]}  d5 {[%clk 0:02:59]} 4. Bg2 {[%clk 0:03:01]}  Be7 {[%clk 0:02:59]} 5. O-O {[%clk 0:03:02]}  O-O {[%clk 0:02:59]} 6. b3 {[%clk 0:03:03]}  d4 {[%clk 0:02:59]} 7. e3 {[%clk 0:03:02]}  c5 {[%clk 0:02:59]} 8. Ne5 {[%clk 0:03:03]}  Nbd7 {[%clk 0:02:29]} 9. exd4 {[%clk 0:02:48]}  cxd4 {[%clk 0:02:27]} 10. Nxd7 {[%clk 0:02:49]}  Nxd7 {[%clk 0:02:23]} 11. d3 {[%clk 0:02:45]}  a5 {[%clk 0:02:18]} 12. Na3 {[%clk 0:02:42]}  Nc5 {[%clk 0:02:05]} 13. Re1 {[%clk 0:02:42]}  Bd7 {[%clk 0:02:04]} 14. Nc2 {[%clk 0:02:40]}  Bc6 {[%clk 0:01:59]} 15. Bxc6 {[%clk 0:02:16]}  bxc6 {[%clk 0:02:00]} 16. Qf3 {[%clk 0:02:16]}  Qd7 {[%clk 0:01:40]} 17. Bb2 {[%clk 0:02:12]}  Bf6 {[%clk 0:01:40]} 18. Ba3 {[%clk 0:02:12]}  Be7 {[%clk 0:01:40]} 19. Re5 {[%clk 0:02:07]}  a4 {[%clk 0:00:46]} 20. Bxc5 {[%clk 0:01:49]}  axb3 {[%clk 0:00:46]} 21. Bxe7 {[%clk 0:01:46]}  bxc2 {[%clk 0:00:20]} 22. Bxf8 {[%clk 0:01:41]}  Rxa2 {[%clk 0:00:14]} 23. Rc1 {[%clk 0:01:39]}  Qb7 {[%clk 0:00:10]} 24. Bd6 {[%clk 0:01:26]}  Qb1 {[%clk 0:00:04]} 25. Ree1 {[%clk 0:01:27]}  Ra1 {[%clk 0:00:04]} 26. Bf4 {[%clk 0:01:23]}  e5 {[%clk 0:00:04]} 27. Rxb1 {[%clk 0:01:15]}  Rxb1 {[%clk 0:00:04]} 28. Bc1 {[%clk 0:01:14]} 1-0


[Site "https://www.chess.com"]

[Event "Titled Tuesday Blitz November 01 Early 2022"]
[White "Colas, Joshua"]
[Black "Jean Louis, Marckens"]
[WhiteFideId "2044447"]
[BlackFideId "11900270"]
[WhiteElo "2347"]
[BlackElo "2030"]
[Result "0-1"]
[Round "06"]
[TimeControl "180+1"]
[Date "2022.11.02"]
[WhiteClock "0:00:07"]
[BlackClock "0:01:07"]

1. Nf3 {[%clk 0:02:58]}  d5 {[%clk 0:02:59]} 2. c4 {[%clk 0:02:58]}  e6 {[%clk 0:02:59]} 3. g3 {[%clk 0:02:53]}  c5 {[%clk 0:02:59]} 4. Bg2 {[%clk 0:02:53]}  Nf6 {[%clk 0:02:58]} 5. O-O {[%clk 0:02:53]}  Be7 {[%clk 0:02:57]} 6. b3 {[%clk 0:02:51]}  dxc4 {[%clk 0:02:56]} 7. bxc4 {[%clk 0:02:51]}  O-O {[%clk 0:02:57]} 8. d3 {[%clk 0:02:52]}  Ne8 {[%clk 0:02:48]} 9. Nc3 {[%clk 0:02:51]}  Bf6 {[%clk 0:02:48]} 10. Bb2 {[%clk 0:02:52]}  Nc6 {[%clk 0:02:48]} 11. Qc1 {[%clk 0:02:50]}  a6 {[%clk 0:02:45]} 12. Ne4 {[%clk 0:02:48]}  Be7 {[%clk 0:02:40]} 13. Ne5 {[%clk 0:02:43]}  Nxe5 {[%clk 0:02:39]} 14. Bxe5 {[%clk 0:02:44]}  f5 {[%clk 0:02:37]} 15. Nd2 {[%clk 0:02:41]}  Bd6 {[%clk 0:02:30]} 16. Nf3 {[%clk 0:02:35]}  Rb8 {[%clk 0:02:28]} 17. Rb1 {[%clk 0:02:34]}  b5 {[%clk 0:02:27]} 18. cxb5 {[%clk 0:02:32]}  axb5 {[%clk 0:02:27]} 19. a4 {[%clk 0:02:28]}  b4 {[%clk 0:02:25]} 20. Qc4 {[%clk 0:02:14]}  Bxe5 {[%clk 0:02:02]} 21. Nxe5 {[%clk 0:02:14]}  Qd6 {[%clk 0:02:02]} 22. f4 {[%clk 0:02:05]}  Ba6 {[%clk 0:02:02]} 23. Qb3 {[%clk 0:02:00]}  Nf6 {[%clk 0:02:01]} 24. Rfc1 {[%clk 0:01:56]}  Rfc8 {[%clk 0:02:00]} 25. h3 {[%clk 0:01:53]}  h6 {[%clk 0:01:56]} 26. Kh2 {[%clk 0:01:53]}  Nd5 {[%clk 0:01:55]} 27. e4 {[%clk 0:01:41]}  fxe4 {[%clk 0:01:52]} 28. Bxe4 {[%clk 0:01:29]}  Nc3 {[%clk 0:01:50]} 29. Bg6 {[%clk 0:01:19]}  Nxb1 {[%clk 0:01:47]} 30. Rxb1 {[%clk 0:01:14]}  Rc7 {[%clk 0:01:43]} 31. Re1 {[%clk 0:01:09]}  Qd5 {[%clk 0:01:33]} 32. Qb2 {[%clk 0:01:01]}  b3 {[%clk 0:01:31]} 33. Be4 {[%clk 0:00:40]}  Qd4 {[%clk 0:01:30]} 34. Qe2 {[%clk 0:00:40]}  b2 {[%clk 0:01:25]} 35. Rb1 {[%clk 0:00:40]}  c4 {[%clk 0:01:23]} 36. dxc4 {[%clk 0:00:25]}  Bxc4 {[%clk 0:01:22]} 37. Nxc4 {[%clk 0:00:17]}  Rxc4 {[%clk 0:01:23]} 38. Bd3 {[%clk 0:00:17]}  Rc1 {[%clk 0:01:15]} 39. Qxe6+ {[%clk 0:00:10]}  Kh8 {[%clk 0:01:12]} 40. Qe2 {[%clk 0:00:07]}  Qg1# {[%clk 0:01:07]} 0-1


[Site "https://www.chess.com"]

[Event "Titled Tuesday Blitz November 01 Early 2022"]
[White "Costachi, Mihnea"]
[Black "Ilkhomi, Jaloliddin"]
[WhiteFideId "1217518"]
[BlackFideId "14700948"]
[WhiteElo "2437"]
[BlackElo "2045"]
[Result "1-0"]
[Round "06"]
[TimeControl "180+1"]
[Date "2022.11.02"]
[WhiteClock "0:01:32"]
[BlackClock "0:01:32"]

1. e4 {[%clk 0:03:00]}  e6 {[%clk 0:03:00]} 2. Nc3 {[%clk 0:03:00]}  d5 {[%clk 0:02:59]} 3. Nf3 {[%clk 0:03:01]}  Nf6 {[%clk 0:02:57]} 4. exd5 {[%clk 0:03:00]}  exd5 {[%clk 0:02:57]} 5. d4 {[%clk 0:03:00]}  Bd6 {[%clk 0:02:57]} 6. Bd3 {[%clk 0:03:00]}  O-O {[%clk 0:02:57]} 7. h3 {[%clk 0:03:01]}  Re8+ {[%clk 0:02:58]} 8. Ne2 {[%clk 0:03:01]}  Ne4 {[%clk 0:02:57]} 9. O-O {[%clk 0:03:01]}  c6 {[%clk 0:02:56]} 10. Bf4 {[%clk 0:02:58]}  Bf5 {[%clk 0:02:54]} 11. Bxd6 {[%clk 0:02:56]}  Qxd6 {[%clk 0:02:55]} 12. Nh4 {[%clk 0:02:51]}  Bg6 {[%clk 0:02:50]} 13. Nxg6 {[%clk 0:02:51]}  hxg6 {[%clk 0:02:51]} 14. f3 {[%clk 0:02:44]}  Ng3 {[%clk 0:02:50]} 15. Nxg3 {[%clk 0:02:45]}  Qxg3 {[%clk 0:02:51]} 16. Re1 {[%clk 0:02:46]}  Nd7 {[%clk 0:02:49]} 17. Qd2 {[%clk 0:02:45]}  Nf6 {[%clk 0:02:46]} 18. Qf2 {[%clk 0:02:45]}  Qd6 {[%clk 0:02:45]} 19. Rxe8+ {[%clk 0:02:45]}  Rxe8 {[%clk 0:02:46]} 20. Re1 {[%clk 0:02:44]}  Rxe1+ {[%clk 0:02:44]} 21. Qxe1 {[%clk 0:02:45]}  Kf8 {[%clk 0:02:44]} 22. Qa5 {[%clk 0:02:42]}  a6 {[%clk 0:02:44]} 23. Qb6 {[%clk 0:02:41]}  Qe7 {[%clk 0:02:40]} 24. Kf2 {[%clk 0:02:39]}  Nh5 {[%clk 0:02:38]} 25. g3 {[%clk 0:02:37]}  Qg5 {[%clk 0:02:32]} 26. Qb4+ {[%clk 0:02:23]}  Kg8 {[%clk 0:02:30]} 27. Qd6 {[%clk 0:02:23]}  Qd2+ {[%clk 0:02:28]} 28. Kf1 {[%clk 0:02:22]}  Qh2 {[%clk 0:02:24]} 29. Qd8+ {[%clk 0:02:16]}  Kh7 {[%clk 0:02:23]} 30. Qh4 {[%clk 0:02:17]}  Qxg3 {[%clk 0:02:13]} 31. Qxh5+ {[%clk 0:02:17]}  Kg8 {[%clk 0:02:12]} 32. Qg4 {[%clk 0:02:16]}  Qh2 {[%clk 0:02:12]} 33. Qg2 {[%clk 0:02:08]}  Qf4 {[%clk 0:02:11]} 34. Qf2 {[%clk 0:01:45]}  Qc1+ {[%clk 0:02:09]} 35. Ke2 {[%clk 0:01:44]}  Qxb2 {[%clk 0:02:09]} 36. Qe3 {[%clk 0:01:44]}  Kh7 {[%clk 0:02:01]} 37. Qf4 {[%clk 0:01:42]}  Kg8 {[%clk 0:01:54]} 38. Qb8+ {[%clk 0:01:40]}  Kh7 {[%clk 0:01:54]} 39. Qf4 {[%clk 0:01:40]}  Kg8 {[%clk 0:01:54]} 40. Qe5 {[%clk 0:01:41]}  Kh7 {[%clk 0:01:49]} 41. Qh5+ {[%clk 0:01:40]}  Kg8 {[%clk 0:01:49]} 42. Qg4 {[%clk 0:01:41]}  Qb6 {[%clk 0:01:40]} 43. h4 {[%clk 0:01:40]}  Qd8 {[%clk 0:01:38]} 44. h5 {[%clk 0:01:40]}  Qe7+ {[%clk 0:01:38]} 45. Kd1 {[%clk 0:01:40]}  gxh5 {[%clk 0:01:36]} 46. Qc8+ {[%clk 0:01:41]}  Qe8 {[%clk 0:01:32]} 47. Qxe8# {[%clk 0:01:32]} 1-0


[Site "https://www.chess.com"]

[Event "Titled Tuesday Blitz November 01 Early 2022"]
[White "De Souza, Cristiano Gomes"]
[Black "Gabrielian, Artur"]
[WhiteFideId "2151758"]
[BlackFideId "4131002"]
[WhiteElo "2068"]
[BlackElo "2432"]
[Result "0-1"]
[Round "06"]
[TimeControl "180+1"]
[Date "2022.11.02"]
[WhiteClock "0:02:19"]
[BlackClock "0:02:35"]

1. d4 {[%clk 0:03:00]}  Nf6 {[%clk 0:02:59]} 2. c4 {[%clk 0:03:00]}  c5 {[%clk 0:02:59]} 3. d5 {[%clk 0:03:00]}  e6 {[%clk 0:03:00]} 4. Nc3 {[%clk 0:02:59]}  exd5 {[%clk 0:03:00]} 5. cxd5 {[%clk 0:03:00]}  d6 {[%clk 0:03:01]} 6. h3 {[%clk 0:03:00]}  g6 {[%clk 0:03:01]} 7. e4 {[%clk 0:02:59]}  Bg7 {[%clk 0:03:01]} 8. Nf3 {[%clk 0:02:59]}  O-O {[%clk 0:03:01]} 9. Bd3 {[%clk 0:02:59]}  Nbd7 {[%clk 0:03:00]} 10. O-O {[%clk 0:02:59]}  Re8 {[%clk 0:03:00]} 11. Re1 {[%clk 0:02:58]}  Ne5 {[%clk 0:03:01]} 12. Nxe5 {[%clk 0:02:58]}  Rxe5 {[%clk 0:03:01]} 13. Bf4 {[%clk 0:02:57]}  Nh5 {[%clk 0:03:02]} 14. Bxe5 {[%clk 0:02:55]}  Bxe5 {[%clk 0:03:02]} 15. Be2 {[%clk 0:02:54]}  Nf4 {[%clk 0:03:01]} 16. Bf3 {[%clk 0:02:54]}  Qg5 {[%clk 0:03:01]} 17. Kf1 {[%clk 0:02:34]}  c4 {[%clk 0:02:44]} 18. Rb1 {[%clk 0:02:25]}  Bd7 {[%clk 0:02:38]} 19. Bg4 {[%clk 0:02:20]}  h5 {[%clk 0:02:36]} 20. Bxd7 {[%clk 0:02:19]}  Qxg2# {[%clk 0:02:35]} 0-1


[Site "https://www.chess.com"]

[Event "Titled Tuesday Blitz November 01 Early 2022"]
[White "Dehtiarov, Roman"]
[Black "Balkum, Alexander"]
[WhiteFideId "14186640"]
[BlackFideId "2005069"]
[WhiteElo "2200"]
[BlackElo "2325"]
[Result "1-0"]
[Round "06"]
[TimeControl "180+1"]
[Date "2022.11.02"]
[WhiteClock "0:00:37"]
[BlackClock "0:00:06"]

1. e4 {[%clk 0:03:00]}  c5 {[%clk 0:02:59]} 2. Nc3 {[%clk 0:03:00]}  Nc6 {[%clk 0:02:59]} 3. f4 {[%clk 0:03:00]}  g6 {[%clk 0:02:58]} 4. Nf3 {[%clk 0:02:59]}  Bg7 {[%clk 0:02:59]} 5. Bb5 {[%clk 0:02:57]}  Nd4 {[%clk 0:02:59]} 6. O-O {[%clk 0:02:44]}  Nxb5 {[%clk 0:02:58]} 7. Nxb5 {[%clk 0:02:45]}  d5 {[%clk 0:02:57]} 8. e5 {[%clk 0:02:42]}  Nh6 {[%clk 0:02:31]} 9. d4 {[%clk 0:02:41]}  a6 {[%clk 0:02:28]} 10. Nc3 {[%clk 0:02:37]}  cxd4 {[%clk 0:02:18]} 11. Nxd4 {[%clk 0:02:38]}  O-O {[%clk 0:02:16]} 12. Be3 {[%clk 0:02:37]}  f6 {[%clk 0:01:25]} 13. exf6 {[%clk 0:02:33]}  Bxf6 {[%clk 0:01:13]} 14. Nf3 {[%clk 0:02:32]}  e6 {[%clk 0:01:02]} 15. Bf2 {[%clk 0:02:14]}  Bd7 {[%clk 0:00:59]} 16. Re1 {[%clk 0:02:13]}  Rc8 {[%clk 0:00:58]} 17. Qd2 {[%clk 0:02:12]}  Nf5 {[%clk 0:00:53]} 18. Ne5 {[%clk 0:02:09]}  Nd6 {[%clk 0:00:42]} 19. Bd4 {[%clk 0:01:56]}  Nc4 {[%clk 0:00:37]} 20. Qf2 {[%clk 0:01:54]}  Nxb2 {[%clk 0:00:19]} 21. Nxd5 {[%clk 0:01:53]}  exd5 {[%clk 0:00:19]} 22. Bxb2 {[%clk 0:01:53]}  Bf5 {[%clk 0:00:16]} 23. c3 {[%clk 0:01:48]}  Bxe5 {[%clk 0:00:15]} 24. Rxe5 {[%clk 0:01:47]}  Re8 {[%clk 0:00:15]} 25. Rae1 {[%clk 0:01:46]}  Rxe5 {[%clk 0:00:14]} 26. Rxe5 {[%clk 0:01:46]}  d4 {[%clk 0:00:14]} 27. cxd4 {[%clk 0:01:42]}  Rc2 {[%clk 0:00:14]} 28. Re2 {[%clk 0:01:42]}  Qc7 {[%clk 0:00:09]} 29. h3 {[%clk 0:01:15]}  Kf7 {[%clk 0:00:06]} 30. g4 {[%clk 0:01:00]}  Bd3 {[%clk 0:00:05]} 31. Rd2 {[%clk 0:00:55]}  Rxd2 {[%clk 0:00:05]} 32. Qxd2 {[%clk 0:00:56]}  Qc2 {[%clk 0:00:05]} 33. Qxc2 {[%clk 0:00:54]}  Bxc2 {[%clk 0:00:05]} 34. Kf2 {[%clk 0:00:54]}  Ke6 {[%clk 0:00:06]} 35. Kg3 {[%clk 0:00:50]}  Bb1 {[%clk 0:00:06]} 36. a3 {[%clk 0:00:50]}  Be4 {[%clk 0:00:05]} 37. Kh4 {[%clk 0:00:51]}  h6 {[%clk 0:00:05]} 38. Bc3 {[%clk 0:00:41]}  Bd5 {[%clk 0:00:06]} 39. Bb4 {[%clk 0:00:42]}  Kf6 {[%clk 0:00:06]} 40. Kg3 {[%clk 0:00:37]}  g5 {[%clk 0:00:06]} 41. f5 {[%clk 0:00:37]}  Bc6 {[%clk 0:00:05]} 42. Bf8 {[%clk 0:00:33]}  h5 {[%clk 0:00:05]} 43. Bd6 {[%clk 0:00:33]}  hxg4 {[%clk 0:00:04]} 44. Kxg4 {[%clk 0:00:34]}  Bd5 {[%clk 0:00:04]} 45. Be5+ {[%clk 0:00:35]}  Kf7 {[%clk 0:00:04]} 46. Kxg5 {[%clk 0:00:36]}  Bg2 {[%clk 0:00:05]} 47. h4 {[%clk 0:00:36]}  Bf1 {[%clk 0:00:05]} 48. h5 {[%clk 0:00:36]}  Bd3 {[%clk 0:00:06]} 49. h6 {[%clk 0:00:36]}  Kg8 {[%clk 0:00:07]} 50. Kg6 {[%clk 0:00:36]}  Bxf5+ {[%clk 0:00:06]} 51. Kxf5 {[%clk 0:00:37]}  b5 {[%clk 0:00:06]} 52. Kg6 {[%clk 0:00:37]} 1-0


[Site "https://www.chess.com"]

[Event "Titled Tuesday Blitz November 01 Early 2022"]
[White "Devaev, Alexander"]
[Black "Kosteniuk, Alexandra"]
[WhiteFideId "4169395"]
[BlackFideId "4128125"]
[WhiteElo "2225"]
[BlackElo "2469"]
[Result "0-1"]
[Round "06"]
[TimeControl "180+1"]
[Date "2022.11.02"]
[WhiteClock "0:00:01"]
[BlackClock "0:01:30"]

1. Nf3 {[%clk 0:03:00]}  f5 {[%clk 0:02:56]} 2. d4 {[%clk 0:02:57]}  Nf6 {[%clk 0:02:55]} 3. g3 {[%clk 0:02:58]}  g6 {[%clk 0:02:56]} 4. Bg2 {[%clk 0:02:58]}  Bg7 {[%clk 0:02:56]} 5. b3 {[%clk 0:02:59]}  O-O {[%clk 0:02:56]} 6. Bb2 {[%clk 0:03:00]}  d6 {[%clk 0:02:56]} 7. d5 {[%clk 0:03:00]}  c6 {[%clk 0:02:53]} 8. c4 {[%clk 0:02:56]}  cxd5 {[%clk 0:02:52]} 9. cxd5 {[%clk 0:02:56]}  Qa5+ {[%clk 0:02:50]} 10. Nbd2 {[%clk 0:02:46]}  Qxd5 {[%clk 0:02:44]} 11. O-O {[%clk 0:02:46]}  Qa5 {[%clk 0:02:41]} 12. Re1 {[%clk 0:02:23]}  Nc6 {[%clk 0:02:38]} 13. Nc4 {[%clk 0:01:55]}  Qd8 {[%clk 0:02:36]} 14. Nd4 {[%clk 0:01:27]}  Bd7 {[%clk 0:02:29]} 15. Rc1 {[%clk 0:01:26]}  Rc8 {[%clk 0:02:26]} 16. Nf3 {[%clk 0:01:16]}  b5 {[%clk 0:02:23]} 17. Ne3 {[%clk 0:01:14]}  Nb4 {[%clk 0:02:14]} 18. a3 {[%clk 0:00:56]}  Nc6 {[%clk 0:02:10]} 19. h4 {[%clk 0:00:51]}  h6 {[%clk 0:02:08]} 20. Nd5 {[%clk 0:00:31]}  e5 {[%clk 0:01:56]} 21. Nxf6+ {[%clk 0:00:20]}  Qxf6 {[%clk 0:01:56]} 22. Nd2 {[%clk 0:00:19]}  Ne7 {[%clk 0:01:52]} 23. Nf1 {[%clk 0:00:18]}  Rxc1 {[%clk 0:01:49]} 24. Bxc1 {[%clk 0:00:17]}  f4 {[%clk 0:01:44]} 25. Bf3 {[%clk 0:00:11]}  Bh3 {[%clk 0:01:36]} 26. Nh2 {[%clk 0:00:09]}  fxg3 {[%clk 0:01:35]} 27. fxg3 {[%clk 0:00:09]}  e4 {[%clk 0:01:33]} 28. Bxe4 {[%clk 0:00:04]}  Qf2+ {[%clk 0:01:33]} 29. Kh1 {[%clk 0:00:05]}  Qxg3 {[%clk 0:01:31]} 30. Nf3 {[%clk 0:00:01]}  Qg2# {[%clk 0:01:30]} 0-1


[Site "https://www.chess.com"]